[Event "46th GRE-chT Premier 2018"]
[Site "Rio Achaia"]
[Date "2018.07.11"]
[Round "2"]
[White "Michna, Marta"]
[Black "Zawadzka, Jolanta"]
[Result "1/2-1/2"]
[ECO "D05"]
[WhiteElo "2322"]
[BlackElo "2439"]
[Annotator "NA"]
[PlyCount "66"]
[EventDate "2018.07.10"]
[EventType "team-tourn"]
[EventCountry "GRE"]
[SourceTitle "playchess.com"]
[Source "ChessBase"]
[SourceQuality "1"]
[TimeControl "40/5400+30:1800+30"]

1. d4 {[%emt 0:00:00]} d5 {[%emt 0:01:12]} 2. Nf3 {[%emt 0:00:00]} Nf6 {[%emt 0:00:08]} 3. e3 {[%emt 0:00:26]} c5 {[%emt 0:00:43]} 4. Nbd2 {[%emt 0:01:36]} e6 {[%emt 0:03:40]} 5. b3 {[%emt 0:00:41]} Nc6 {[%emt 0:00:29]} 6. Bb2 {[%emt 0:01:33]} Bd6 {[%emt 0:01:15]} 7. a3 {[%emt 0:02:54]} O-O {[%emt 0:10:46]} 8. Bd3 {[%emt 0:04:23]} b6 {[%emt 0:01:08]} 9. Ne5 {[%emt 0:03:55]} Bb7 {[%emt 0:00:47]} 10. O-O {[%emt 0:16:32]} Rc8 $11 {[%emt 0:08:30]} 11. f4 {[%emt 0:04:50]} Ne7 {[%emt 0:03:59]} 12. Qf3 {[%emt 0:07:57]} Nf5 {[%emt 0:07:41]} 13. g4 {[%emt 0:14:36]} Nh4 {[%emt 0:01:49]} 14. Qh3 {[%emt 0:04:43]} Ne4 {[%emt 0:00:15]} 15. Rad1 {[%emt 0:02:58]} Qe7 {[%emt 0:08:15]} 16. dxc5 {[%emt 0:17:18]} Bxc5 {[%emt 0:03:39]} 17. b4 {[%emt 0:06:38]} Bd6 {[%emt 0:01:38]} 18. Bd4 {[%emt 0:01:22]} Bc7 {[%emt 0:21:14]} 19. Nd7 {[%emt 0:05:04]} Qxd7 {[%emt 0:02:18]} 20. Qxh4 {[%emt 0:00:02]} Bd8 {[%emt 0:00:39]} 21. Qh3 {[%emt 0:00:27]} Qe7 {[%emt 0:01:11]} 22. c4 {[%emt 0:00:59]} f5 {[%emt 0:05:28]} 23. cxd5 {[%emt 0:00:14]} Bxd5 {[%emt 0:00:39]} 24. gxf5 {[%emt 0:00:58]} exf5 {[%emt 0:00:17]} 25. Bxe4 {[%emt 0:00:40]} Bxe4 {[%emt 0:00:13]} 26. Nxe4 {[%emt 0:00:07]} Qxe4 {[%emt 0:00:06]} 27. Qg2 {[%emt 0:00:41]} Qxg2+ {[%emt 0:00:55]} 28. Kxg2 {[%emt 0:00:03]} Bf6 {[%emt 0:00:06]} 29. Bxf6 {[%emt 0:01:49]} Rxf6 {[%emt 0:00:03]} 30. Rc1 {[%emt 0:00:22]} Re8 {[%emt 0:01:30]} 31. Rc3 {[%emt 0:00:16]} Rfe6 {[%emt 0:00:07]} 32. Kf3 {[%emt 0:00:15]} Rh6 {[%emt 0:00:16]} 33. Kg3 {[%emt 0:00:11]} Rg6+ {[%emt 0:00:43]} 1/2-1/2

[Event "46th GRE-chT Premier 2018"]
[Site "Rio Achaia"]
[Date "2018.07.11"]
[Round "2"]
[White "Kouskoutis, Georgios-Alexandros"]
[Black "Korniotis, Filippos"]
[Result "1-0"]
[ECO "A15"]
[WhiteElo "2307"]
[BlackElo "2163"]
[Annotator "NA"]
[PlyCount "99"]
[EventDate "2018.07.10"]
[EventType "team-tourn"]
[EventCountry "GRE"]
[SourceTitle "playchess.com"]
[Source "ChessBase"]
[SourceQuality "1"]
[TimeControl "40/5400+30:1800+30"]

1. c4 Nf6 2. g3 g6 3. Bg2 d5 4. cxd5 Nxd5 5. Nf3 Bg7 6. O-O Nc6 7. Nc3 O-O 8. d4 {[%emt 0:29:22]} Nb6 {[%emt 0:29:48]} 9. e3 {[%emt 0:13:27]} Nb4 {[%emt 0:05:01]} 10. Re1 {[%emt 0:09:02]} c6 {[%emt 0:01:11]} 11. e4 {[%emt 0:10:33]} Bg4 {[%emt 0:00:58]} 12. Be3 {[%emt 0:07:12]} e5 {[%emt 0:00:36]} 13. d5 {[%emt 0:15:01]} Re8 {[%emt 0:21:54]} 14. a3 {[%emt 0:05:15]} Na6 {[%emt 0:01:01]} 15. h3 {[%emt 0:02:50]} Bxf3 {[%emt 0:01:20]} 16. Qxf3 {[%emt 0:01:34]} cxd5 {[%emt 0:07:20]} 17. Bxb6 {[%emt 0:03:27]} dxe4 {[%emt 0:00:02]} 18. Qxf7+ {[%emt 0:00:30]} Kxf7 {[%emt 0:00:30]} 19. Bxd8 {[%emt 0:00:02]} Rexd8 {[%emt 0:01:16]} 20. Nxe4 {[%emt 0:00:06]} h6 {[%emt 0:00:03]} 21. Rac1 {[%emt 0:01:28]} Rd7 {[%emt 0:00:32]} 22. Red1 {[%emt 0:00:37]} Rad8 {[%emt 0:00:12]} 23. Rxd7+ {[%emt 0:00:14]} Rxd7 {[%emt 0:07:38]} 24. b4 {[%emt 0:00:38]} Bf8 {[%emt 0:14:50]} 25. Rc8 Nc7 26. h4 {[%emt 0:00:58]} Nb5 {[%emt 0:01:55]} 27. a4 {[%emt 0:00:38]} Nd6 {[%emt 0:03:49]} 28. Nxd6+ {[%emt 0:00:05]} Bxd6 {[%emt 0:00:03]} 29. b5 {[%emt 0:00:42]} b6 {[%emt 0:00:13]} 30. Bd5+ {[%emt 0:00:42]} Kf6 {[%emt 0:00:18]} 31. Bc6 {[%emt 0:00:25]} Re7 {[%emt 0:00:20]} 32. Rd8 {[%emt 0:00:36]} Bc5 {[%emt 0:00:06]} 33. Be4 {[%emt 0:00:21]} Kg7 {[%emt 0:00:38]} 34. Kg2 {[%emt 0:00:33]} Rf7 {[%emt 0:00:33]} 35. f3 {[%emt 0:00:19]} Rf8 {[%emt 0:02:07]} 36. Rd5 {[%emt 0:00:40]} Bd4 {[%emt 0:02:23]} 37. Kf1 {[%emt 0:00:32]} Rf7 {[%emt 0:00:59]} 38. Ke2 {[%emt 0:00:07]} Bc3 {[%emt 0:00:19]} 39. g4 {[%emt 0:00:53]} h5 {[%emt 0:00:36]} 40. g5 {[%emt 0:00:00]} Rf4 {[%emt 0:00:00]} 41. Rd7+ {[%emt 0:01:29]} Kf8 {[%emt 0:06:44]} 42. Bxg6 {[%emt 0:12:20]} e4 {[%emt 0:04:19]} 43. Bxe4 {[%emt 0:01:12]} Rxh4 {[%emt 0:00:09]} 44. Rxa7 Rh2+ 45. Kd3 Be5 46. Rb7 Ra2 47. Rxb6 Ra3+ 48. Kc4 Rxa4+ 49. Kd5 Bf4 50. Rf6+ 1-0

[Event "46th GRE-chT Premier 2018"]
[Site "Rio Achaia"]
[Date "2018.07.11"]
[Round "2"]
[White "Argiroudis, Stamatis"]
[Black "Kourousis, Epaminondas"]
[Result "1/2-1/2"]
[ECO "A46"]
[WhiteElo "2306"]
[BlackElo "2399"]
[Annotator "NA"]
[PlyCount "145"]
[EventDate "2018.07.10"]
[EventType "team-tourn"]
[EventCountry "GRE"]
[SourceTitle "playchess.com"]
[Source "ChessBase"]
[SourceQuality "1"]
[TimeControl "40/5400+30:1800+30"]

1. d4 {[%emt 0:00:00]} Nf6 {[%emt 0:00:00]} 2. Nf3 {[%emt 0:00:50]} e6 {[%emt 0:00:12]} 3. g3 {[%emt 0:01:05]} b6 {[%emt 0:01:04]} 4. Bg2 {[%emt 0:00:20]} Bb7 {[%emt 0:00:07]} 5. O-O {[%emt 0:00:14]} g6 {[%emt 0:00:25] A47: Damenindisch (ohne c2-c4)} (5... c5 6. dxc5 Bxc5 7. c4 d5 8. Nh4 Qc8 9. cxd5 Bxd5 10. Bxd5 Nxd5 11. e4 Ne7 12. b4 Bxb4 13. Qd4 Qc5 14. Qxg7 {½-½ (62) Naiditsch,A (2702)-Akobian,V (2633) Caleta 2017}) 6. Bg5 {[%emt 0:05:28]} Bg7 {[%emt 0:01:08]} 7. Nbd2 $146 {[%emt 0:00:33]} ({Vorgänger:} 7. Re1 h6 8. Bc1 O-O 9. Nbd2 d5 10. Ne5 c5 11. e3 Nc6 12. f4 cxd4 13. Nxc6 Bxc6 14. exd4 {0-1 (68) Van Eetvelde,W (2102)-Dragun,K (2580) Maastricht 2015}) 7... h6 {[%emt 0:06:56]} 8. Bxf6 {[%emt 0:00:11]} Qxf6 {[%emt 0:00:45]} 9. c3 {[%emt 0:03:21]} O-O {[%emt 0:03:28]} 10. a4 {[%emt 0:05:06]} a6 {[%emt 0:05:35]} 11. Ne5 {[%emt 0:08:11]} Bxg2 {[%emt 0:00:52]} 12. Kxg2 {[%emt 0:00:04]} d6 {[%emt 0:00:42]} 13. Nd3 {[%emt 0:00:16]} Qe7 {[%emt 0:10:14]} 14. Qb3 {[%emt 0:05:01]} Nc6 {[%emt 0:04:09]} 15. e4 {[%emt 0:05:35]} Na5 {[%emt 0:04:13]} 16. Qb4 {[%emt 0:05:59]} Rab8 {[%emt 0:07:14]} 17. Nf3 {[%emt 0:21:09]} c5 {[%emt 0:01:10]} 18. dxc5 {[%emt 0:02:01]} dxc5 {[%emt 0:00:31]} 19. Qa3 {[%emt 0:00:04]} Rfd8 {[%emt 0:03:51]} 20. Nf4 {[%emt 0:04:41]} Qb7 {[%emt 0:01:37]} 21. Rfe1 {[%emt 0:04:47]} Rd7 {[%emt 0:02:17]} 22. h4 {[%emt 0:06:42]} Rbd8 {[%emt 0:01:14]} 23. b4 {[%emt 0:10:15]} cxb4 {[%emt 0:03:39]} 24. Qxb4 {[%emt 0:00:30]} Rc8 {[%emt 0:03:19]} 25. Rac1 {[%emt 0:02:50]} Rc4 {[%emt 0:01:44]} 26. Qb1 {[%emt 0:00:31]} Rxa4 {[%emt 0:09:43]} 27. Red1 {[%emt 0:02:22]} b5 {[%emt 0:01:27]} 28. Rxd7 {[%emt 0:00:28]} Qxd7 {[%emt 0:00:02]} 29. Rd1 {[%emt 0:00:16]} Qc7 {[%emt 0:00:13]} 30. Qd3 Nc6 {[%emt 0:07:02]} 31. e5 Nxe5 {[%emt 0:00:30]} 32. Nxe5 {[%emt 0:03:29]} Qxe5 {[%emt 0:02:26]} 33. Qd8+ {[%emt 0:01:10]} Bf8 {[%emt 0:01:56]} 34. Qe8 {[%emt 0:01:33]} Ra2 {[%emt 0:04:30]} 35. Nh3 {[%emt 0:00:46]} Qxc3 {[%emt 0:10:48]} 36. Rd8 {[%emt 0:00:23]} Qg7 {[%emt 0:00:19]} 37. Nf4 {[%emt 0:00:24]} b4 {[%emt 0:00:45]} 38. Rb8 {[%emt 0:01:19]} Ra5 {[%emt 0:02:20]} 39. Rb7 {[%emt 0:00:53]} Qf6 {[%emt 0:00:30]} 40. Rb8 {[%emt 0:00:00]} Qg7 {[%emt 0:00:00]} 41. Rb7 {[%emt 0:05:06]} Rb5 {[%emt 0:07:23]} 42. Rd7 {[%emt 0:07:24]} Re5 {[%emt 0:10:41]} 43. Rb7 {[%emt 0:03:06]} a5 {[%emt 0:02:23]} 44. Rb8 {[%emt 0:00:44]} Rf5 {[%emt 0:01:22]} 45. Nd3 {[%emt 0:03:53]} g5 {[%emt 0:05:27]} 46. h5 {[%emt 0:01:25]} Rd5 {[%emt 0:01:42]} 47. Nb2 {[%emt 0:00:46]} g4 {[%emt 0:03:24]} 48. Nc4 {[%emt 0:00:48]} Rxh5 {[%emt 0:00:34]} 49. Nb6 {[%emt 0:02:08]} Rd5 {[%emt 0:02:02]} 50. Nxd5 {[%emt 0:02:00]} exd5 {[%emt 0:00:01]} 51. Qd8 {[%emt 0:00:52]} d4 {[%emt 0:00:56]} 52. Qd7 {[%emt 0:04:03]} h5 {[%emt 0:00:37]} 53. Qb5 {[%emt 0:01:07]} Qh6 {[%emt 0:00:29]} 54. Rb6 {[%emt 0:01:03]} Qg7 {[%emt 0:00:30]} 55. Qxa5 {[%emt 0:01:36]} h4 {[%emt 0:00:31]} 56. gxh4 {[%emt 0:00:22]} g3 {[%emt 0:00:26]} 57. fxg3 {[%emt 0:00:21]} Qg4 {[%emt 0:00:01]} 58. Qg5+ {[%emt 0:00:59]} Qxg5 {[%emt 0:00:01]} 59. hxg5 {[%emt 0:00:06]} Kg7 {[%emt 0:01:02]} 60. Kf3 {[%emt 0:00:18]} Be7 {[%emt 0:00:44]} 61. Ke4 {[%emt 0:00:42]} Bxg5 {[%emt 0:00:06]} 62. Rxb4 {[%emt 0:00:13]} Be3 {[%emt 0:00:55]} 63. Rb6 {[%emt 0:01:31]} Kh7 {[%emt 0:00:35]} 64. Rd6 {[%emt 0:00:08]} Kg7 {[%emt 0:00:11]} 65. Kf5 {[%emt 0:00:15]} Kh7 $2 {[%emt 0:00:59]} (65... d3 $18 66. Rxd3 Bf2) 66. g4 {[%emt 0:00:16]} Bh6 {[%emt 0:00:28]} 67. Rxd4 {[%emt 0:00:08]} Bg7 {[%emt 0:00:07]} 68. Rd7 {[%emt 0:00:25]} Kg8 {[%emt 0:00:05]} 69. g5 {[%emt 0:00:52]} Bb2 {[%emt 0:00:26]} 70. Rb7 {[%emt 0:01:05]} Bc3 $11 {[%emt 0:00:07]} 71. Rb8+ {[%emt 0:01:41]} Kg7 {[%emt 0:00:07]} 72. Rc8 {[%emt 0:00:10]} Bb2 {[%emt 0:00:02]} 73. Ke4 1/2-1/2

[Event "46th GRE-chT Premier 2018"]
[Site "Rio Achaia"]
[Date "2018.07.11"]
[Round "2"]
[White "Antova, Gabriela"]
[Black "Fragkou, Eleni"]
[Result "0-1"]
[ECO "E91"]
[WhiteElo "2301"]
[BlackElo "1979"]
[Annotator "NA"]
[PlyCount "56"]
[EventDate "2018.07.10"]
[EventType "team-tourn"]
[EventCountry "GRE"]
[SourceTitle "playchess.com"]
[Source "ChessBase"]
[SourceQuality "1"]
[TimeControl "40/5400+30:1800+30"]

1. d4 {[%emt 0:00:00]} Nf6 {[%emt 0:01:14]} 2. c4 {[%emt 0:00:00]} g6 {[%emt 0:00:06]} 3. Nc3 {[%emt 0:00:00]} Bg7 {[%emt 0:00:10]} 4. e4 {[%emt 0:00:03]} d6 {[%emt 0:00:08]} 5. Nf3 {[%emt 0:00:08]} O-O {[%emt 0:00:12]} 6. Be2 {[%emt 0:00:07]} Bg4 {[%emt 0:00:25]} 7. O-O {[%emt 0:02:55]} Nfd7 {[%emt 0:00:10]} 8. Be3 {[%emt 0:02:38]} Nc6 {[%emt 0:02:13]} 9. Rc1 {[%emt 0:05:44]} e5 {[%emt 0:03:39]} 10. d5 {[%emt 0:03:20]} Bxf3 {[%emt 0:10:04]} 11. Bxf3 {[%emt 0:00:17]} Nd4 {[%emt 0:00:05]} 12. b4 {[%emt 0:06:47]} f5 {[%emt 0:13:20]} 13. Bxd4 {[%emt 0:08:48]} exd4 {[%emt 0:00:07]} 14. Nb5 {[%emt 0:01:35]} fxe4 {[%emt 0:04:02]} 15. Bxe4 {[%emt 0:00:53]} Qh4 {[%emt 0:00:58]} 16. Qc2 {[%emt 0:11:54]} Ne5 {[%emt 0:27:41]} 17. h3 {[%emt 0:17:01]} d3 {[%emt 0:04:47]} 18. Bxd3 {[%emt 0:00:06]} Nf3+ {[%emt 0:00:03]} 19. Kh1 {[%emt 0:07:07]} Ng5 {[%emt 0:09:03]} 20. f4 {[%emt 0:04:12]} Nxh3 {[%emt 0:01:45]} 21. gxh3 {[%emt 0:02:36]} Qxh3+ {[%emt 0:00:07]} 22. Qh2 {[%emt 0:12:11]} Qxd3 {[%emt 0:00:07]} 23. Qg2 {[%emt 0:05:35]} Rae8 {[%emt 0:04:12]} 24. Nxc7 {[%emt 0:04:13]} Re2 {[%emt 0:01:24]} 25. Qf3 {[%emt 0:02:27]} Re3 {[%emt 0:00:28]} 26. Qg4 {[%emt 0:00:00]} Qe4+ {[%emt 0:01:31]} 27. Qg2 {[%emt 0:00:45]} Rh3+ {[%emt 0:00:08]} 28. Kg1 {[%emt 0:00:17]} Bd4+ {[%emt 0:00:07]} 0-1

[Event "46th GRE-chT Premier 2018"]
[Site "Rio Achaia"]
[Date "2018.07.11"]
[Round "2"]
[White "Vlahos, Kiriakos"]
[Black "Gkogkas, Dimitrios"]
[Result "1/2-1/2"]
[ECO "A69"]
[WhiteElo "2293"]
[BlackElo "2038"]
[Annotator "NA"]
[PlyCount "109"]
[EventDate "2018.07.10"]
[EventType "team-tourn"]
[EventCountry "GRE"]
[SourceTitle "playchess.com"]
[Source "ChessBase"]
[SourceQuality "1"]
[TimeControl "40/5400+30:1800+30"]

1. c4 {[%emt 0:03:34]} g6 {[%emt 0:00:38]} 2. Nc3 {[%emt 0:05:07]} Bg7 {[%emt 0:02:33]} 3. d4 {[%emt 0:00:19]} Nf6 {[%emt 0:00:45]} 4. e4 {[%emt 0:00:17]} O-O {[%emt 0:00:14]} 5. f4 {[%emt 0:00:12]} d6 {[%emt 0:00:14]} 6. Nf3 {[%emt 0:00:07]} c5 {[%emt 0:02:16]} 7. d5 {[%emt 0:01:54]} e6 {[%emt 0:02:13]} 8. Be2 {[%emt 0:00:06]} exd5 {[%emt 0:00:18]} 9. cxd5 {[%emt 0:00:05]} Re8 {[%emt 0:08:04]} 10. e5 {[%emt 0:02:07]} dxe5 {[%emt 0:00:26]} 11. fxe5 {[%emt 0:00:06]} Ng4 {[%emt 0:00:07]} 12. Bg5 {[%emt 0:00:07]} f6 {[%emt 0:05:53]} 13. exf6 {[%emt 0:00:18]} Bxf6 {[%emt 0:00:02]} 14. Qd2 {[%emt 0:00:16]} Bf5 {[%emt 0:05:01]} 15. h3 {[%emt 0:06:03]} Bxg5 {[%emt 0:02:20]} 16. Qxg5 {[%emt 0:02:13]} Qxg5 {[%emt 0:05:41]} 17. Nxg5 {[%emt 0:00:18]} Ne5 {[%emt 0:05:40]} 18. O-O-O {[%emt 0:03:16]} c4 {[%emt 0:03:44]} 19. Nge4 {[%emt 0:12:31]} Rd8 {[%emt 0:14:20]} 20. Rhe1 {[%emt 0:00:41]} Na6 {[%emt 0:06:01]} 21. Bf1 {[%emt 0:02:46]} Nb4 {[%emt 0:09:34]} 22. Nf6+ {[%emt 0:10:44]} Kg7 {[%emt 0:01:47]} 23. Nh5+ {[%emt 0:01:27]} gxh5 {[%emt 0:02:49]} 24. Rxe5 {[%emt 0:00:07]} Rf8 {[%emt 0:04:11]} 25. Re7+ {[%emt 0:05:49]} Rf7 {[%emt 0:00:57]} 26. Rxf7+ {[%emt 0:00:05]} Kxf7 {[%emt 0:00:10]} 27. Bxc4 {[%emt 0:00:51]} Rc8 {[%emt 0:05:08]} 28. Rd4 {[%emt 0:01:57]} Kf6 {[%emt 0:03:51]} 29. a3 {[%emt 0:03:18]} Ke5 {[%emt 0:00:29]} 30. Rh4 {[%emt 0:00:30]} b5 {[%emt 0:05:48]} 31. Rxh5 {[%emt 0:22:07]} Rxc4 {[%emt 0:02:12]} 32. g4 {[%emt 0:05:56]} Na2+ {[%emt 0:01:21]} 33. Kd2 {[%emt 0:01:10]} Rd4+ {[%emt 0:00:39]} 34. Ke1 {[%emt 0:02:26]} Nxc3 {[%emt 0:00:54]} 35. Rxf5+ {[%emt 0:00:04]} Kd6 {[%emt 0:00:17]} 36. bxc3 {[%emt 0:00:05]} Rd3 {[%emt 0:00:10]} 37. Rh5 {[%emt 0:07:41]} Rxc3 {[%emt 0:00:22]} 38. Kd2 {[%emt 0:00:30]} Rxa3 {[%emt 0:00:17]} 39. Rxh7 {[%emt 0:00:06]} a5 {[%emt 0:00:47]} 40. g5 {[%emt 0:00:00]} Rg3 41. h4 {[%emt 0:01:57]} a4 {[%emt 0:01:45]} 42. Rb7 {[%emt 0:02:39]} Rh3 {[%emt 0:06:11]} 43. Rxb5 {[%emt 0:02:24]} Rxh4 {[%emt 0:00:12]} 44. Ke3 {[%emt 0:03:22]} Rg4 {[%emt 0:01:50]} 45. g6 {[%emt 0:00:28]} Ke5 {[%emt 0:01:40]} 46. d6+ {[%emt 0:04:03]} Kxd6 {[%emt 0:02:09]} 47. Kf3 {[%emt 0:03:51]} Rg1 {[%emt 0:01:01]} 48. Kf2 {[%emt 0:00:18]} Rg4 {[%emt 0:00:14]} 49. Kf3 {[%emt 0:00:40]} Rg1 {[%emt 0:00:05]} 50. Kf2 {[%emt 0:00:05]} Rg4 {[%emt 0:00:31]} 51. Kf3 {[%emt 0:02:47]} Rg1 {[%emt 0:00:04]} 52. Kf4 {[%emt 0:00:53]} Ke7 {[%emt 0:02:14]} 53. Kf5 {[%emt 0:00:50]} Kf8 {[%emt 0:00:21]} 54. Ra5 {[%emt 0:00:25]} Rf1+ {[%emt 0:00:22]} 55. Ke4 1/2-1/2

[Event "46th GRE-chT Premier 2018"]
[Site "Rio Achaia"]
[Date "2018.07.11"]
[Round "2"]
[White "Patrelakis, Evaggelos"]
[Black "Spyropoulos, Nikolaos"]
[Result "1-0"]
[ECO "B03"]
[WhiteElo "2285"]
[BlackElo "2293"]
[Annotator "NA"]
[PlyCount "73"]
[EventDate "2018.07.10"]
[EventType "team-tourn"]
[EventCountry "GRE"]
[SourceTitle "playchess.com"]
[Source "ChessBase"]
[SourceQuality "1"]
[TimeControl "40/5400+30:1800+30"]

1. e4 {[%emt 0:00:00]} Nf6 {[%emt 0:00:53]} 2. e5 {[%emt 0:00:00]} Nd5 {[%emt 0:00:07]} 3. d4 {[%emt 0:00:00]} d6 {[%emt 0:00:03]} 4. c4 {[%emt 0:00:00]} Nb6 {[%emt 0:00:02]} 5. exd6 {[%emt 0:00:00]} cxd6 {[%emt 0:00:36]} 6. Nc3 {[%emt 0:00:45]} g6 {[%emt 0:00:05]} 7. Bd3 {[%emt 0:02:40]} Bg7 {[%emt 0:02:06]} 8. Nge2 {[%emt 0:00:16]} O-O {[%emt 0:12:58]} 9. Be3 {[%emt 0:02:41]} Nc6 {[%emt 0:01:24]} 10. b3 {[%emt 0:02:38]} d5 {[%emt 0:07:40]} 11. c5 {[%emt 0:22:49]} Nd7 {[%emt 0:01:04]} 12. Rc1 {[%emt 0:01:20]} e5 {[%emt 0:07:48]} 13. dxe5 {[%emt 0:09:35]} Ndxe5 {[%emt 0:03:04]} 14. Bb5 {[%emt 0:02:00]} Ng4 {[%emt 0:14:22]} 15. Qxd5 {[%emt 0:08:07]} Nxe3 {[%emt 0:01:49]} 16. fxe3 {[%emt 0:05:09]} Qh4+ {[%emt 0:06:34]} 17. Ng3 {[%emt 0:09:42]} Qe7 {[%emt 0:03:19]} 18. Nce4 {[%emt 0:07:05]} Rd8 {[%emt 0:04:03]} 19. Qg5 {[%emt 0:01:54]} Qxg5 {[%emt 0:05:40]} 20. Nxg5 {[%emt 0:00:03]} Bh6 {[%emt 0:00:33]} 21. h4 {[%emt 0:01:59]} f6 {[%emt 0:01:37]} 22. N5e4 {[%emt 0:13:17]} Bxe3 {[%emt 0:01:09]} 23. Rd1 {[%emt 0:01:49]} Rxd1+ {[%emt 0:05:39]} 24. Kxd1 {[%emt 0:00:01]} f5 {[%emt 0:00:23]} 25. Re1 {[%emt 0:01:35]} Bf4 {[%emt 0:09:20]} 26. Nd6 {[%emt 0:01:00]} Bd7 {[%emt 0:00:41]} 27. Ne2 {[%emt 0:00:58]} Be3 {[%emt 0:01:34]} 28. Nxb7 {[%emt 0:01:18]} Rb8 {[%emt 0:00:35]} 29. Nc3 {[%emt 0:02:23]} Bd4 {[%emt 0:01:26]} 30. Nd5 {[%emt 0:01:48]} Kf8 {[%emt 0:01:43]} 31. Nd6 {[%emt 0:00:39]} Bxc5 {[%emt 0:01:20]} 32. Nf6 {[%emt 0:00:12]} Rd8 {[%emt 0:05:23]} 33. Nb7 {[%emt 0:00:24]} Be6+ {[%emt 0:00:57]} 34. Nxd8 {[%emt 0:00:58]} Nxd8 {[%emt 0:00:06]} 35. Nxh7+ {[%emt 0:00:59]} Kg7 {[%emt 0:00:09]} 36. Ng5 {[%emt 0:00:15]} Bd5 {[%emt 0:00:05]} 37. Re5 {[%emt 0:00:20]} 1-0

[Event "46th GRE-chT Premier 2018"]
[Site "Rio Achaia"]
[Date "2018.07.11"]
[Round "2"]
[White "Drakoulakos, Grigorios"]
[Black "Tsanas, Athanasios"]
[Result "1-0"]
[ECO "B92"]
[WhiteElo "2276"]
[BlackElo "2302"]
[Annotator "NA"]
[PlyCount "65"]
[EventDate "2018.07.10"]
[EventType "team-tourn"]
[EventCountry "GRE"]
[SourceTitle "playchess.com"]
[Source "ChessBase"]
[SourceQuality "1"]
[TimeControl "40/5400+30:1800+30"]

1. e4 {[%emt 0:01:24]} c5 {[%emt 0:01:44]} 2. Nf3 {[%emt 0:00:06]} d6 {[%emt 0:00:05]} 3. d4 {[%emt 0:00:06]} cxd4 {[%emt 0:00:06]} 4. Nxd4 {[%emt 0:00:05]} Nf6 {[%emt 0:00:04]} 5. Nc3 {[%emt 0:00:06]} a6 {[%emt 0:00:30]} 6. Be2 {[%emt 0:01:08]} e5 {[%emt 0:00:17]} 7. Nb3 {[%emt 0:00:18]} Be7 {[%emt 0:00:10]} 8. Be3 {[%emt 0:00:50]} Be6 {[%emt 0:00:07]} 9. Nd5 {[%emt 0:01:28]} Nbd7 {[%emt 0:07:49]} 10. Qd3 {[%emt 0:00:45]} Bxd5 {[%emt 0:00:07]} 11. exd5 {[%emt 0:00:06]} O-O 12. c4 {[%emt 0:02:32]} Nc5 {[%emt 0:36:24]} 13. Nxc5 {[%emt 0:07:13]} dxc5 {[%emt 0:00:04]} 14. O-O {[%emt 0:25:29]} Qc7 {[%emt 0:03:43]} 15. Rab1 a5 {[%emt 0:12:55]} 16. a3 {[%emt 0:14:44]} e4 {[%emt 0:02:41]} 17. Qc2 {[%emt 0:06:27]} Bd6 {[%emt 0:00:05]} 18. h3 {[%emt 0:00:54]} Rae8 {[%emt 0:00:35]} 19. Rfc1 {[%emt 0:07:37]} Nd7 {[%emt 0:01:10]} 20. b4 {[%emt 0:00:52]} axb4 {[%emt 0:00:15]} 21. axb4 {[%emt 0:00:02]} f5 {[%emt 0:02:19]} 22. bxc5 Nxc5 {[%emt 0:04:46]} 23. Bd4 {[%emt 0:10:22]} Be5 {[%emt 0:08:03]} 24. Qb2 {[%emt 0:03:48]} f4 {[%emt 0:04:09]} 25. Bxe5 {[%emt 0:00:14]} Rxe5 {[%emt 0:00:41]} 26. Qd4 {[%emt 0:01:52]} Qd6 {[%emt 0:01:45]} 27. Rb5 {[%emt 0:00:46]} b6 {[%emt 0:00:20]} 28. Rcb1 {[%emt 0:00:25]} Nd7 {[%emt 0:05:32]} 29. Bg4 {[%emt 0:00:19]} Rfe8 {[%emt 0:00:33]} 30. Bxd7 {[%emt 0:00:50]} Qxd7 {[%emt 0:00:04]} 31. Rxb6 {[%emt 0:00:01]} Rg5 {[%emt 0:02:43]} 32. Rb8 {[%emt 0:01:39]} f3 {[%emt 0:01:32]} 33. Qxe4 {[%emt 0:00:47]} 1-0

[Event "46th GRE-chT Premier 2018"]
[Site "Rio Achaia"]
[Date "2018.07.11"]
[Round "2"]
[White "Vafiadis, Kleanthis"]
[Black "Pappas, Apostolos"]
[Result "1-0"]
[ECO "B07"]
[WhiteElo "2275"]
[BlackElo "2034"]
[Annotator "NA"]
[PlyCount "85"]
[EventDate "2018.07.10"]
[EventType "team-tourn"]
[EventCountry "GRE"]
[SourceTitle "playchess.com"]
[Source "ChessBase"]
[SourceQuality "1"]
[TimeControl "40/5400+30:1800+30"]

1. d4 {[%emt 0:00:00]} d6 {[%emt 0:00:00]} 2. e4 {[%emt 0:00:37]} Nf6 {[%emt 0:00:00]} 3. Nc3 {[%emt 0:00:07]} g6 {[%emt 0:00:00]} 4. Bg5 {[%emt 0:00:39]} Bg7 5. e5 {[%emt 0:00:50]} Nfd7 {[%emt 0:00:00]} 6. Nf3 {[%emt 0:04:06]} O-O {[%emt 0:04:08]} 7. Qe2 {[%emt 0:01:20]} f6 {[%emt 0:00:45]} 8. exf6 {[%emt 0:04:26]} exf6 {[%emt 0:00:01]} 9. Be3 {[%emt 0:00:22]} c6 {[%emt 0:04:46]} 10. Qd2 {[%emt 0:02:07]} d5 {[%emt 0:00:12]} 11. h4 {[%emt 0:03:33]} Re8 {[%emt 0:03:18]} 12. h5 g5 {[%emt 0:14:32]} 13. h6 {[%emt 0:03:39]} Bf8 {[%emt 0:02:42]} 14. O-O-O {[%emt 0:05:09]} Be7 {[%emt 0:04:20]} 15. Bd3 {[%emt 0:02:56]} Nf8 {[%emt 0:00:00]} 16. Ne2 {[%emt 0:03:27]} Na6 {[%emt 0:02:45]} 17. c3 {[%emt 0:09:48]} b5 {[%emt 0:08:31]} 18. Ng3 {[%emt 0:00:51]} b4 {[%emt 0:01:08]} 19. c4 {[%emt 0:01:15]} Bd6 {[%emt 0:04:02]} 20. Nh5 {[%emt 0:08:13]} b3 {[%emt 0:12:10]} 21. a3 {[%emt 0:02:34]} Rb8 {[%emt 0:13:54]} 22. c5 {[%emt 0:00:25]} Bc7 {[%emt 0:00:29]} 23. Nxg5 {[%emt 0:09:02]} Rxe3 {[%emt 0:04:03]} 24. Bxh7+ {[%emt 0:05:23]} Nxh7 {[%emt 0:00:43]} 25. Nxh7 {[%emt 0:00:08]} Kxh7 {[%emt 0:01:11]} 26. Qxe3 {[%emt 0:03:33]} Bf5 27. g4 {[%emt 0:04:52]} Bg6 {[%emt 0:07:52]} 28. Rde1 {[%emt 0:02:25]} Rb7 {[%emt 0:01:30]} 29. Qe7+ {[%emt 0:06:02]} Qxe7 {[%emt 0:00:13]} 30. Rxe7+ {[%emt 0:00:05]} Kh8 {[%emt 0:00:58]} 31. Rhe1 {[%emt 0:00:13]} Bxh5 {[%emt 0:02:23]} 32. gxh5 {[%emt 0:00:38]} Bf4+ {[%emt 0:00:07]} 33. Kd1 {[%emt 0:00:22]} Rxe7 {[%emt 0:00:31]} 34. Rxe7 {[%emt 0:00:06]} Nc7 {[%emt 0:00:18]} 35. a4 {[%emt 0:01:25]} a5 {[%emt 0:06:46]} 36. Ke2 {[%emt 0:02:12]} Na6 {[%emt 0:01:52]} 37. Ra7 {[%emt 0:05:07]} Nb4 {[%emt 0:00:23]} 38. Rxa5 {[%emt 0:05:37]} Bc1 {[%emt 0:01:24]} 39. Ra8+ {[%emt 0:00:00]} Kh7 {[%emt 0:00:00]} 40. Rb8 {[%emt 0:00:00]} Nc2 {[%emt 0:00:00]} 41. Kd1 {[%emt 0:05:28]} Bf4 {[%emt 0:07:22]} 42. Rb7+ {[%emt 0:00:19]} Kxh6 {[%emt 0:00:12]} 43. a5 {[%emt 0:00:19]} 1-0